bitfinex-derivatives/quotes_BTCF0:USTF0_20240925
["timestamp","ask_amount","ask_price","bid_price","bid_amount"]
[1727292395291,0.078968,63320.0,63317.0,0.07809307]
[1727292395475,0.12,63319.0,63317.0,0.07809307]
[1727292395681,0.12,63319.0,63317.0,0.0309]
[1727292396189,0.07897,63318.0,63317.0,0.0309]
[1727292396590,0.078971,63317.0,63314.0,0.0631]
[1727292396885,0.3608,63315.0,63310.0,0.0315]
[1727292397293,0.3568,63315.0,63310.0,0.0315]
[1727292397487,0.18,63313.0,63310.0,0.0315]
[1727292397681,0.18,63313.0,63303.0,0.082688]
[1727292397682,0.11765718,63312.0,63303.0,0.082688]
[1727292397883,0.3608,63304.0,63303.0,0.078988]
[1727292398083,0.39948624,63304.0,63303.0,0.078988]
[1727292398284,0.3608,63304.0,63303.0,0.078988]
[1727292398494,0.3548,63304.0,63303.0,0.078988]
[1727292398688,0.3458,63304.0,63303.0,0.078988]
[1727292400089,0.3468,63304.0,63303.0,0.091988]
[1727292400291,0.3478,63304.0,63303.0,0.101988]
[1727292400694,0.3478,63304.0,63303.0,0.023]
[1727292402887,0.606787,63304.0,63303.0,0.023]
[1727292404889,0.5278,63304.0,63303.0,0.023]
[1727292405497,0.3478,63304.0,63303.0,0.023]
[1727292405805,0.967587,63304.0,63303.0,0.023]
[1727292414307,0.982587,63304.0,63303.0,0.023]
[1727292414692,0.078999,63295.0,63294.0,0.0037]
[1727292414991,0.079,63294.0,63289.0,0.079006]
[1727292415197,0.5408,63293.0,63289.0,0.079006]
[1727292415400,0.5408,63293.0,63290.0,0.079005]
[1727292415698,0.3608,63293.0,63292.0,0.259002]
[1727292415900,0.32126907,63293.0,63292.0,0.259002]
[1727292416494,0.31826907,63293.0,63292.0,0.259002]
[1727292417408,0.32026907,63293.0,63292.0,0.270002]
[1727292422300,0.32026907,63293.0,63292.0,0.31719507]
[1727292423109,0.32026907,63293.0,63292.0,0.349004]
[1727292423316,0.002,63293.0,63292.0,0.349004]
[1727292424404,0.002,63293.0,63292.0,0.54304754]
[1727292425207,0.002,63293.0,63292.0,0.46427833]
[1727292426617,0.002,63293.0,63292.0,0.349004]
[1727292428317,0.002,63293.0,63292.0,0.289004]
[1727292428521,0.0037,63299.0,63298.0,0.078995]
[1727292428724,0.078986,63306.0,63298.0,0.12]
[1727292428725,0.082686,63306.0,63298.0,0.12]
[1727292429012,0.10130167,63306.0,63305.0,0.12]
[1727292429212,0.10130167,63306.0,63305.0,0.198986]
[1727292430016,0.22130167,63306.0,63305.0,0.078986]
[1727292430410,0.28130167,63306.0,63305.0,0.078986]
[1727292430612,0.28630167,63306.0,63305.0,0.079986]
[1727292431013,0.28630167,63306.0,63305.0,0.001]
[1727292431213,0.34870167,63306.0,63305.0,0.001]
[1727292432229,0.43468767,63306.0,63305.0,0.001]
[1727292434320,0.35570167,63306.0,63305.0,0.001]
[1727292436824,0.03431567,63306.0,63305.0,0.079986]
[1727292437219,0.03431567,63306.0,63305.0,0.14309259]
[1727292437421,0.03431567,63306.0,63305.0,0.079986]
[1727292440320,0.03431567,63306.0,63305.0,0.14310866]
[1727292441628,0.03431567,63306.0,63305.0,0.079986]
[1727292441832,0.29330067,63306.0,63305.0,0.001]
[1727292442731,0.37228567,63306.0,63305.0,0.001]
[1727292447248,1.09388567,63306.0,63305.0,0.001]
[1727292449843,1.13257812,63306.0,63305.0,0.001]
[1727292450747,0.078992,63301.0,63297.0,0.078996]
[1727292451049,0.5408,63298.0,63297.0,0.078996]
[1727292452538,0.189,63298.0,63297.0,0.078996]
[1727292452732,0.5498,63298.0,63297.0,0.078996]
[1727292453147,0.3698,63298.0,63297.0,0.078996]
[1727292453340,0.3698,63298.0,63297.0,0.258996]
[1727292453541,0.3698,63298.0,63297.0,0.337992]
[1727292453846,0.3818,63298.0,63297.0,0.337992]
[1727292454141,0.3818,63298.0,63297.0,0.157992]
[1727292454350,0.021,63298.0,63297.0,0.157992]
[1727292455333,0.021,63298.0,63297.0,0.078996]
[1727292455740,0.021,63298.0,63297.0,0.12632376]
[1727292456247,0.021,63298.0,63297.0,0.20531976]
[1727292456639,0.021,63298.0,63297.0,0.27319607]
[1727292457547,0.439788,63304.0,63303.0,0.078989]
[1727292457548,0.3608,63304.0,63303.0,0.078989]
[1727292457849,0.3608,63304.0,63303.0,0.33785631]
[1727292458045,0.3608,63304.0,63303.0,0.37403155]
[1727292458452,0.3608,63304.0,63303.0,0.37396184]
[1727292458651,0.3888,63304.0,63303.0,0.37396184]
[1727292459447,0.3888,63304.0,63303.0,0.45280288]
[1727292459951,0.3888,63304.0,63303.0,1.60571188]
[1727292460149,0.3888,63304.0,63303.0,1.52687084]
[1727292460150,0.028,63304.0,63303.0,1.52687084]
[1727292461058,0.0037,63311.0,63310.0,0.07898]
[1727292461240,0.10167851,63312.0,63311.0,0.078979]
[1727292461440,0.10167851,63312.0,63311.0,0.12627302]
[1727292462351,0.10967851,63312.0,63311.0,0.12727302]
[1727292463043,0.03070051,63312.0,63311.0,0.12727302]
[1727292463550,0.03070051,63312.0,63311.0,0.079979]
[1727292464147,0.03470051,63312.0,63311.0,0.12827302]
[1727292464352,0.03470051,63312.0,63311.0,0.080979]
[1727292465146,0.03470051,63312.0,63311.0,0.12827302]
[1727292466357,0.11367751,63312.0,63311.0,0.12827302]
[1727292466954,0.11367751,63312.0,63311.0,0.002]
[1727292471157,0.19265451,63312.0,63311.0,0.002]
[1727292471358,0.078986,63305.0,63302.0,0.0037]
[1727292471566,0.078992,63300.0,63298.0,0.04729402]
[1727292471763,0.078992,63300.0,63295.0,0.39165839]
[1727292471764,0.258994,63299.0,63295.0,0.3286]
[1727292471959,0.14187909,63296.0,63295.0,0.3286]
[1727292472363,0.08718526,63296.0,63295.0,0.3286]
[1727292473056,0.08718482,63296.0,63295.0,0.3286]
[1727292474175,0.09118482,63296.0,63295.0,0.3286]
[1727292474354,0.09118482,63296.0,63295.0,0.3296]
[1727292474355,0.09618482,63296.0,63295.0,0.3296]
[1727292474665,0.23806391,63296.0,63295.0,0.3296]
[1727292475754,0.23806391,63296.0,63295.0,0.001]
[1727292477066,0.31706091,63296.0,63295.0,0.001]
[1727292478362,0.17518182,63296.0,63295.0,0.001]
[1727292478565,0.31706091,63296.0,63295.0,0.001]
[1727292479268,0.17518182,63296.0,63295.0,0.001]
[1727292479467,0.31706091,63296.0,63295.0,0.001]
[1727292479964,0.087997,63296.0,63295.0,0.001]
[1727292480755,0.087997,63296.0,63295.0,0.06407378]
[1727292481468,0.087997,63296.0,63295.0,0.001]
[1727292482960,0.087997,63296.0,63295.0,0.04831437]
[1727292483169,0.087997,63296.0,63295.0,0.001]
[1727292483370,0.087997,63296.0,63295.0,0.04831441]
[1727292484161,0.087997,63296.0,63295.0,0.001]
[1727292484368,0.087997,63296.0,63295.0,0.04830918]
[1727292484763,0.087997,63296.0,63295.0,0.001]
[1727292484967,0.009,63296.0,63295.0,0.001]
[1727292485162,0.009,63296.0,63295.0,0.04830134]
[1727292485362,0.009,63296.0,63295.0,0.001]
[1727292485955,0.009,63296.0,63295.0,0.04829793]
[1727292486265,0.009,63296.0,63295.0,0.04829912]
[1727292486566,0.009,63296.0,63295.0,0.001]
[1727292491062,0.009,63296.0,63295.0,0.079999]
[1727292494774,0.009,63296.0,63295.0,0.14307278]
[1727292496369,0.009,63296.0,63295.0,0.079999]
[1727292497974,0.087997,63296.0,63295.0,0.079999]
[1727292498478,0.009,63296.0,63295.0,0.079999]
[1727292499486,0.009,63296.0,63295.0,0.27410428]
[1727292500366,0.009,63296.0,63295.0,0.19528129]
[1727292501770,0.009,63296.0,63295.0,0.079999]
[1727292501970,0.04769083,63296.0,63295.0,0.079999]
[1727292504276,0.16769083,63296.0,63295.0,0.079999]
[1727292505972,0.16769056,63296.0,63295.0,0.079999]
[1727292509780,0.129,63296.0,63295.0,0.19537271]
[1727292510181,0.009,63296.0,63295.0,0.27437171]
[1727292510497,0.3608,63311.0,63302.0,0.15798]
[1727292510676,0.0037,63310.0,63302.0,0.31436371]
[1727292510981,0.38349803,63311.0,63310.0,0.07898]
[1727292511772,0.02269803,63311.0,63310.0,0.15794422]
[1727292511975,0.078975,63314.0,63312.0,0.078976]
[1727292512485,0.078975,63314.0,63312.0,0.14205292]
[1727292512677,0.078975,63314.0,63313.0,0.078976]
[1727292513283,0.078975,63314.0,63313.0,0.14205292]
[1727292513583,0.078975,63314.0,63313.0,0.078976]
[1727292513782,0.078975,63314.0,63313.0,0.079976]
[1727292515287,0.10153138,63314.0,63313.0,0.079976]
[1727292515487,0.02255638,63314.0,63313.0,0.079976]
[1727292515683,0.3608,63317.0,63313.0,0.079976]
[1727292515684,0.3608,63317.0,63316.0,0.078972]
[1727292516885,0.3608,63317.0,63316.0,0.080972]
[1727292519781,0.3608,63323.0,63322.0,0.078965]
[1727292521088,0.3608,63323.0,63322.0,0.079965]
[1727292522277,0.3608,63323.0,63322.0,0.080965]
[1727292524892,0.44794745,63323.0,63322.0,0.080965]
[1727292526992,0.26000417,63323.0,63322.0,0.080965]
[1727292527579,0.33896817,63323.0,63322.0,0.002]
[1727292527785,0.078969,63319.0,63318.0,0.078969]
[1727292527986,0.30744324,63319.0,63318.0,0.078969]
[1727292528183,0.34611645,63319.0,63318.0,0.078969]
[1727292529693,0.51899629,63319.0,63318.0,0.078969]
[1727292530500,0.51999629,63319.0,63318.0,0.078969]
[1727292530697,0.44102729,63319.0,63318.0,0.078969]
[1727292531901,0.181,63319.0,63318.0,0.078969]
[1727292532194,0.001,63319.0,63318.0,0.078969]
[1727292532899,0.078974,63315.0,63313.0,0.078975]
[1727292533101,0.198974,63315.0,63310.0,0.3608]
[1727292534096,0.198974,63315.0,63313.0,0.002]
[1727292534307,0.12,63315.0,63314.0,0.078975]
[1727292535207,0.121,63315.0,63314.0,0.078975]
[1727292536906,0.122,63315.0,63314.0,0.079975]
[1727292537705,0.14429966,63315.0,63314.0,0.079975]
[1727292538494,0.002,63315.0,63314.0,0.199975]
[1727292538901,0.002,63315.0,63314.0,0.27895]
[1727292539894,0.08915354,63315.0,63314.0,0.27895]
[1727292540098,0.14385576,63315.0,63314.0,0.27895]
[1727292540293,0.002,63315.0,63314.0,0.27895]
[1727292540698,0.0406741,63315.0,63314.0,0.27795]
[1727292541102,0.0406741,63315.0,63314.0,0.27895]
[1727292541103,0.0396741,63315.0,63314.0,0.27895]
[1727292541607,0.001,63315.0,63314.0,0.27795]
[1727292541800,0.08814953,63315.0,63314.0,0.27795]
[1727292543304,0.23000529,63315.0,63314.0,0.27795]
[1727292544997,0.08814953,63315.0,63314.0,0.27795]
[1727292545497,0.23000529,63315.0,63314.0,0.27795]
[1727292546421,0.23000529,63315.0,63314.0,0.198975]
[1727292546710,0.08814953,63315.0,63314.0,0.198975]
[1727292546904,0.001,63315.0,63314.0,0.198975]
[1727292547315,0.001,63315.0,63314.0,0.2620149]
[1727292547616,0.001,63315.0,63314.0,0.198975]
[1727292548311,0.001,63315.0,63314.0,0.078975]
[1727292548617,0.001,63315.0,63314.0,0.14203572]
[1727292552504,0.001,63315.0,63314.0,0.078975]
[1727292556313,0.001,63315.0,63314.0,0.15795]
[1727292556519,0.001,63315.0,63314.0,0.18865]
[1727292557913,0.001,63315.0,63314.0,0.109675]
[1727292558720,0.001,63315.0,63314.0,0.078975]
[1727292563724,0.03967518,63315.0,63314.0,0.078975]
[1727292563914,0.001,63315.0,63314.0,0.078975]
[1727292564834,0.001,63315.0,63314.0,0.15795]
[1727292565526,0.03967488,63315.0,63314.0,0.15795]
[1727292565722,0.001,63315.0,63314.0,0.236925]
[1727292566026,0.08815109,63315.0,63314.0,0.15795]
[1727292567029,0.08815109,63315.0,63314.0,0.299125]
[1727292567225,0.03967488,63315.0,63314.0,0.299125]
[1727292567427,0.0037,63322.0,63321.0,0.157932]
[1727292567628,0.08713899,63322.0,63321.0,0.518732]
[1727292568219,0.08713899,63322.0,63321.0,0.597698]
[1727292568530,1e-08,63325.0,63324.0,0.078962]
[1727292568717,0.0037,63332.0,63331.0,0.078954]
[1727292569026,0.17287984,63334.0,63333.0,0.078951]
[1727292569225,0.443444,63340.0,63333.0,0.559751]
[1727292569226,0.0037,63340.0,63333.0,0.559751]
[1727292569430,0.0616,63341.0,63340.0,0.078943]
[1727292570918,0.0626,63341.0,63340.0,0.079943]
[1727292571621,0.0626,63341.0,63340.0,0.080943]
[1727292574728,0.321541,63341.0,63340.0,0.002]
[1727292574917,0.321541,63341.0,63332.0,0.078952]
[1727292574918,0.07895,63335.0,63332.0,0.078952]
[1727292575222,0.07895,63335.0,63327.0,0.42384123]
[1727292575223,0.078953,63332.0,63329.0,0.078955]
[1727292575423,0.078953,63332.0,63330.0,0.078954]
[1727292575615,0.078953,63332.0,63331.0,0.078954]
[1727292576632,0.079953,63332.0,63331.0,0.078954]
[1727292577227,0.04946778,63332.0,63331.0,0.079954]
[1727292577417,0.25403171,63332.0,63331.0,0.079954]
[1727292577929,0.04946778,63332.0,63331.0,0.079954]
[1727292578317,0.04946778,63332.0,63331.0,0.080954]
[1727292578318,0.25603171,63332.0,63331.0,0.080954]
[1727292579130,0.05146778,63332.0,63331.0,0.080954]
[1727292580626,0.05146778,63332.0,63331.0,0.260954]
[1727292582333,0.05146778,63332.0,63331.0,0.080954]
[1727292582637,0.157932,63321.0,63320.0,0.0074]
[1727292582837,0.95006662,63321.0,63308.0,0.3608]
[1727292583135,0.18,63309.0,63308.0,0.3608]
[1727292583434,0.04846662,63309.0,63299.0,0.078993]
[1727292583629,0.5408,63305.0,63299.0,0.078993]
[1727292583838,0.04846662,63304.0,63299.0,0.078993]
[1727292584130,0.18,63303.0,63299.0,0.078993]
[1727292584440,0.54172,63305.0,63299.0,0.078993]
[1727292584736,0.5408,63305.0,63299.0,0.078993]
[1727292585548,0.5408,63305.0,63299.0,0.092993]
[1727292585549,0.5318,63305.0,63299.0,0.092993]
[1727292586122,0.5318,63305.0,63299.0,0.106993]
[1727292587337,0.3518,63305.0,63299.0,0.106993]
[1727292587535,0.37479623,63305.0,63299.0,0.106993]
[1727292587843,0.07899,63302.0,63299.0,0.028]
[1727292588938,0.07899,63302.0,63299.0,0.092993]
[1727292589138,0.07899,63302.0,63299.0,0.106993]
[1727292589938,0.07999,63302.0,63299.0,0.100993]
[1727292592930,0.07999,63302.0,63300.0,0.078992]
[1727292594142,0.07999,63302.0,63300.0,0.092992]
[1727292594641,0.44079,63302.0,63300.0,0.092992]
[1727292595443,0.44079,63302.0,63300.0,0.106992]
[1727292597534,0.3608,63315.0,63305.0,0.078985]
[1727292597535,0.439774,63315.0,63305.0,0.078985]
[1727292597736,0.078984,63308.0,63306.0,0.078985]
[1727292598942,0.079984,63308.0,63306.0,0.087985]
[1727292600551,0.078984,63307.0,63306.0,0.095985]
[1727292601636,0.078984,63307.0,63306.0,0.017]
[1727292601835,0.078984,63307.0,63306.0,0.008]
[1727292602246,0.079984,63307.0,63306.0,0.017]
[1727292602947,0.078997,63296.0,63295.0,0.05098092]
[1727292603150,0.078997,63296.0,63292.0,0.42384123]
[1727292603151,0.18,63299.0,63293.0,0.079]
[1727292603348,0.079004,63291.0,63289.0,0.12628692]
[1727292603549,0.079004,63291.0,63288.0,0.04728092]
[1727292603762,0.079004,63291.0,63287.0,0.0621]
[1727292603957,0.079004,63291.0,63290.0,0.079005]
[1727292604248,0.18,63291.0,63288.0,0.079007]
[1727292604453,0.3468,63294.0,63293.0,0.079001]
[1727292604645,0.3388,63294.0,63293.0,0.079001]
[1727292605642,0.3428,63294.0,63293.0,0.079001]
[1727292606558,0.36501535,63294.0,63293.0,0.079001]
[1727292607354,0.37101535,63294.0,63293.0,0.079001]
[1727292608353,0.3488,63294.0,63293.0,0.079001]
[1727292612552,0.3488,63294.0,63293.0,0.338002]
[1727292612751,0.111886,63306.0,63293.0,1.90580689]
[1727292613049,0.115586,63306.0,63305.0,0.078986]
[1727292613245,0.111886,63306.0,63305.0,0.078986]
[1727292614259,0.16037678,63306.0,63305.0,0.078986]
[1727292614650,0.18343059,63306.0,63305.0,0.078986]
[1727292614850,0.19543059,63306.0,63305.0,0.078986]
[1727292616459,0.11644474,63306.0,63305.0,0.078986]
[1727292616953,0.11444474,63306.0,63305.0,0.079986]
[1727292617147,0.12544474,63306.0,63305.0,0.080986]
[1727292617347,0.20442974,63306.0,63305.0,0.080986]
[1727292617758,0.19342974,63306.0,63305.0,0.079986]
[1727292618058,0.20442974,63306.0,63305.0,0.002]
[1727292618648,0.20542974,63306.0,63305.0,0.002]
[1727292619144,0.20642974,63306.0,63305.0,0.001]
[1727292619756,0.20842974,63306.0,63305.0,0.001]
[1727292619953,0.20842974,63306.0,63298.0,0.078995]
[1727292620254,0.18,63299.0,63298.0,0.078995]
[1727292620461,0.22849107,63299.0,63298.0,0.078995]
[1727292621056,0.22849107,63299.0,63298.0,0.079995]
[1727292621260,0.30748507,63299.0,63298.0,0.079995]
[1727292621459,0.12748507,63299.0,63298.0,0.079995]
[1727292621662,0.04849107,63299.0,63298.0,0.079995]
[1727292621863,0.05449107,63299.0,63298.0,0.079995]
[1727292622255,0.006,63299.0,63298.0,0.079995]
[1727292622456,0.006,63299.0,63298.0,0.15899]
[1727292622457,0.011,63299.0,63298.0,0.15899]
[1727292622658,0.011,63299.0,63298.0,0.20628168]
[1727292623164,0.011,63299.0,63298.0,0.15899]
[1727292626363,0.011,63299.0,63298.0,0.079995]
[1727292629467,0.089994,63299.0,63298.0,0.079995]
[1727292632766,0.089994,63299.0,63298.0,0.001]
[1727292633462,0.089994,63299.0,63291.0,0.0037]
[1727292633463,0.079002,63292.0,63291.0,0.0037]
[1727292633664,0.079007,63288.0,63287.0,0.36172]
[1727292633874,0.079007,63288.0,63280.0,0.0307]
[1727292633875,0.079009,63287.0,63286.0,0.07901]
[1727292634074,0.079011,63286.0,63280.0,0.0307]
[1727292634781,0.439811,63286.0,63280.0,0.0307]
[1727292635373,0.079011,63285.0,63284.0,0.079012]
[1727292635576,0.259011,63285.0,63284.0,0.079012]
[1727292636074,0.257011,63285.0,63284.0,0.079012]
[1727292636673,0.257011,63285.0,63280.0,0.0397]
[1727292636674,0.65404,63285.0,63280.0,0.009]
[1727292636966,0.259016,63281.0,63280.0,0.009]
[1727292637270,0.072017,63280.0,63279.0,0.06305545]
[1727292637466,0.072017,63280.0,63276.0,0.06305545]
[1727292637467,0.079021,63277.0,63276.0,0.06305545]
[1727292637668,0.435821,63277.0,63275.0,0.06305545]
[1727292638064,0.428821,63277.0,63275.0,0.14207845]
[1727292638475,0.428821,63277.0,63275.0,0.079023]
[1727292638869,0.429821,63277.0,63275.0,0.086023]
[1727292639072,0.429821,63277.0,63276.0,0.079022]
[1727292639469,0.429821,63277.0,63276.0,0.12627419]
[1727292639882,0.430821,63277.0,63276.0,0.12627419]
[1727292640471,0.430821,63277.0,63276.0,0.079022]
[1727292643578,0.430821,63277.0,63273.0,0.079026]
[1727292643579,0.079025,63274.0,63273.0,0.079026]
[1727292645072,0.080025,63274.0,63273.0,0.079026]
[1727292645474,0.079029,63271.0,63270.0,0.079029]
[1727292645674,0.079029,63271.0,63267.0,0.0331]
[1727292645675,0.079032,63268.0,63267.0,0.0331]
[1727292645879,0.5408,63271.0,63265.0,0.3608]
[1727292645880,0.079035,63267.0,63265.0,0.3608]
[1727292646084,0.259035,63266.0,63265.0,0.439835]
[1727292647293,0.18,63266.0,63265.0,0.439835]
[1727292647479,0.079032,63269.0,63267.0,0.079033]
[1727292647986,0.079032,63268.0,63267.0,0.079033]
[1727292648184,0.03948589,63268.0,63267.0,0.079033]
[1727292650491,0.001,63268.0,63267.0,0.079033]
[1727292650785,0.002,63268.0,63267.0,0.079033]
[1727292658485,0.081032,63268.0,63267.0,0.079033]
[1727292658687,0.079036,63265.0,63264.0,0.079037]
[1727292658891,0.439836,63265.0,63264.0,0.079037]
[1727292659290,0.439836,63265.0,63260.0,0.0638]
[1727292659291,0.07904,63262.0,63260.0,0.0638]
[1727292659488,0.07904,63262.0,63261.0,0.079041]
[1727292660992,0.08004,63262.0,63261.0,0.079041]
[1727292661399,0.08004,63262.0,63261.0,0.12629319]
[1727292661598,0.08004,63262.0,63261.0,0.079041]
[1727292661799,0.002,63262.0,63261.0,0.079041]
[1727292662408,0.002,63262.0,63261.0,0.12629651]
[1727292662705,0.002,63262.0,63261.0,0.079041]
[1727292664804,0.02425231,63262.0,63261.0,0.079041]
[1727292665012,0.002,63262.0,63261.0,0.079041]
[1727292666397,0.002,63262.0,63261.0,0.19694078]
[1727292666601,0.002,63262.0,63261.0,0.19695105]
[1727292667306,0.002,63262.0,63261.0,0.079041]
[1727292668505,0.08104,63262.0,63261.0,0.079041]
[1727292668897,0.002,63262.0,63261.0,0.079041]
[1727292670112,0.002,63262.0,63261.0,0.07282727]
[1727292674318,0.002,63262.0,63261.0,0.19088787]
[1727292674616,0.08104,63262.0,63261.0,0.28547395]
[1727292675214,0.002,63262.0,63261.0,0.28547395]
[1727292675921,0.08104,63262.0,63261.0,0.28547395]
[1727292676510,0.002,63262.0,63261.0,0.28547395]
[1727292677219,0.002,63262.0,63261.0,0.19088787]
[1727292678308,0.34008,63262.0,63261.0,0.19706749]
[1727292678510,0.079041,63261.0,63260.0,0.0632142]
[1727292678717,0.079041,63261.0,63258.0,0.0632142]
[1727292678718,0.079044,63259.0,63258.0,0.0632142]
[1727292678914,0.079045,63258.0,63257.0,0.0632142]
[1727292679119,0.33809,63258.0,63257.0,0.0632142]
[1727292679325,0.079046,63257.0,63256.0,0.0632142]
[1727292679617,0.259046,63257.0,63256.0,0.0632142]
[1727292679809,0.079047,63256.0,63255.0,0.0632142]
[1727292680005,0.259047,63256.0,63255.0,0.0632142]
[1727292680217,0.259047,63256.0,63249.0,0.079056]
[1727292680218,0.079053,63252.0,63249.0,0.079056]
[1727292680419,0.18,63251.0,63250.0,0.11793353]
[1727292680908,0.18,63251.0,63250.0,0.19698853]
[1727292681114,0.3608,63252.0,63251.0,0.079054]
[1727292681421,0.3608,63252.0,63251.0,0.19698753]
[1727292682314,0.002,63257.0,63256.0,0.079047]
[1727292682513,0.001,63257.0,63256.0,0.259047]
[1727292682809,0.3608,63259.0,63258.0,0.079045]
[1727292683619,0.38416433,63259.0,63258.0,0.079045]
[1727292685915,0.38516433,63259.0,63258.0,0.079045]
[1727292687018,0.3618,63259.0,63258.0,0.079045]
[1727292687220,0.0037,63264.0,63263.0,0.158078]
[1727292687424,0.3608,63267.0,63263.0,0.259039]
[1727292688012,0.3608,63267.0,63266.0,0.079035]
[1727292688215,0.3608,63267.0,63266.0,0.15807]
[1727292688518,0.0037,63272.0,63271.0,0.079029]
[1727292688519,0.3645,63272.0,63271.0,0.079029]
[1727292688728,0.3608,63272.0,63271.0,0.079029]
[1727292689820,0.3698,63272.0,63271.0,0.079029]
[1727292690221,0.448827,63272.0,63271.0,0.079029]
[1727292690915,0.458827,63272.0,63271.0,0.079029]
[1727292691322,0.458827,63272.0,63271.0,0.126363]
[1727292692125,0.3798,63272.0,63271.0,0.126363]
[1727292693614,0.3798,63272.0,63271.0,0.079029]
[1727292697435,0.3798,63272.0,63271.0,0.14218423]
[1727292700933,0.3798,63272.0,63271.0,0.079029]
[1727292701435,0.458827,63272.0,63271.0,0.079029]
[1727292704544,0.3798,63272.0,63271.0,0.079029]
[1727292705336,0.3798,63272.0,63271.0,0.109529]
[1727292712641,0.34025632,63272.0,63271.0,0.109529]
[1727292713035,0.0227443,63274.0,63273.0,0.079026]
[1727292713231,0.079022,63277.0,63276.0,0.079022]
[1727292714144,0.3608,63279.0,63278.0,0.07902]
[1727292714331,0.3608,63279.0,63278.0,0.14216475]
[1727292715444,0.3608,63279.0,63278.0,0.07902]
[1727292715748,0.3748,63279.0,63278.0,0.07902]
[1727292716537,0.39783083,63279.0,63278.0,0.07902]
[1727292717046,0.41183083,63279.0,63278.0,0.08002]
[1727292717546,0.39783083,63279.0,63278.0,0.08002]
[1727292717749,0.41083083,63279.0,63278.0,0.08102]
[1727292719445,0.45934142,63279.0,63278.0,0.08102]
[1727292720339,0.45934295,63279.0,63278.0,0.08102]
[1727292725247,0.07551212,63279.0,63278.0,0.34004]
[1727292725551,0.233366,63279.0,63278.0,0.34004]
[1727292725942,0.07551212,63279.0,63278.0,0.34004]
[1727292726749,0.07550639,63279.0,63278.0,0.34004]
[1727292727546,0.027,63279.0,63278.0,0.5511694]
[1727292728353,0.027,63279.0,63278.0,0.45658332]
[1727292728940,0.027,63279.0,63278.0,0.5511694]
[1727292729248,0.027,63279.0,63278.0,0.45658332]
[1727292729451,0.027,63279.0,63278.0,0.55129617]
[1727292729652,0.0037,63285.0,63284.0,0.158024]
[1727292729844,0.0037,63292.0,63291.0,0.079004]
[1727292730043,0.0037,63299.0,63292.0,0.259002]
[1727292730244,0.0037,63300.0,63292.0,0.259002]
[1727292731151,0.078995,63298.0,63292.0,0.259002]
[1727292731356,0.02260032,63296.0,63292.0,0.259002]
[1727292731551,0.3748,63293.0,63292.0,0.079002]
[1727292731851,0.3748,63293.0,63292.0,0.080002]
[1727292731852,0.3848,63293.0,63292.0,0.080002]
[1727292733059,0.3708,63293.0,63292.0,0.081002]
[1727292733355,0.3708,63293.0,63292.0,0.14403941]
[1727292733561,0.01,63293.0,63292.0,0.081002]
[1727292733954,0.02260032,63296.0,63294.0,0.078999]
[1727292734153,0.078999,63295.0,63294.0,0.078999]
[1727292735459,0.078999,63295.0,63294.0,0.079999]
[1727292736346,0.088999,63295.0,63294.0,0.080999]
[1727292737360,0.097999,63295.0,63294.0,0.080999]
[1727292742663,0.18518811,63295.0,63294.0,0.080999]
[1727292743185,0.17538238,63295.0,63294.0,0.080999]
[1727292743367,0.18518808,63295.0,63294.0,0.080999]
[1727292746860,0.35842889,63295.0,63294.0,0.080999]
[1727292747866,0.18518808,63295.0,63294.0,0.080999]
[1727292748064,0.18518808,63295.0,63294.0,0.200999]
[1727292748262,0.18518784,63295.0,63294.0,0.200999]
[1727292749170,0.10618884,63295.0,63294.0,0.200999]
[1727292749562,0.019,63295.0,63294.0,0.200999]
[1727292749965,0.019,63295.0,63294.0,0.279999]
[1727292750467,0.019,63295.0,63294.0,0.200999]
[1727292752564,0.019,63295.0,63294.0,0.080999]
[1727292753876,0.097999,63295.0,63294.0,0.080999]
[1727292755072,0.019,63295.0,63294.0,0.080999]
[1727292756474,0.019,63295.0,63294.0,0.2482532]
[1727292757469,0.10618808,63295.0,63294.0,0.200999]
[1727292761473,0.10618808,63295.0,63294.0,0.080999]
[1727292761669,0.27942889,63295.0,63294.0,0.080999]
[1727292762165,0.10618808,63295.0,63294.0,0.080999]
[1727292762874,0.1061881,63295.0,63294.0,0.080999]
[1727292763080,0.1851871,63295.0,63294.0,0.080999]
[1727292764473,0.13669025,63295.0,63294.0,0.1282532]
[1727292764670,0.097999,63295.0,63294.0,0.1282532]
[1727292764873,0.097999,63295.0,63294.0,0.12841735]
[1727292765686,0.097999,63295.0,63294.0,0.080999]
[1727292766269,0.097999,63295.0,63294.0,0.12841631]
[1727292766780,0.097999,63295.0,63294.0,0.080999]
[1727292767171,0.097999,63295.0,63294.0,0.12841572]
[1727292767372,0.097999,63295.0,63294.0,0.080999]
[1727292768969,0.019,63295.0,63294.0,0.080999]
[1727292769770,0.097999,63295.0,63294.0,0.080999]
[1727292771569,0.019,63295.0,63294.0,0.080999]
[1727292772777,0.10618806,63295.0,63294.0,0.080999]
[1727292773173,0.18518706,63295.0,63294.0,0.080999]
[1727292774990,0.18518706,63295.0,63294.0,0.002]
[1727292775289,0.18518706,63295.0,63294.0,0.081]
[1727292777785,0.18519019,63295.0,63294.0,0.081]
[1727292778086,0.18519019,63295.0,63294.0,0.002]
[1727292779583,0.097999,63295.0,63294.0,0.04941459]
[1727292780395,0.097999,63295.0,63290.0,0.06303741]
[1727292780396,0.3798,63295.0,63290.0,0.06303741]
[1727292780586,0.3798,63295.0,63283.0,0.0074]
[1727292780587,0.12,63291.0,63283.0,0.0074]
[1727292780891,0.12,63284.0,63279.0,0.06303741]